Cogmind - Beta 15 *** ADVENTURER MODE // 2025.05.09 @ 22:53:42 Player: User15V Result: Destroyed by 8D-6KC(R) with Subdweller Laser Performance ------------- Evolutions (0) 0 Regions Visited (2) 400 Robots Destroyed (14) 70 Value Destroyed (407) 407 Prototype IDs (2) 40 Alien Tech Used (0) 0 Bonus (0) 0 TOTAL SCORE: 917 Bonus ------- None Cogmind --------- Core Integrity 0/250 Matter 206/300 Energy 100/100 System Corruption 0% Temperature Cool (6) Movement Walking (190) Ox1 Location -10/Subcaves Parts ------- > --- POWER (1) -------- (None) > --- PROPULSION (2) --- Aluminum Leg Aluminum Leg > --- UTILITY (2) ------ Heat Sink Large Storage Unit > --- WEAPON (2) ------- Light Assault Rifle Light Assault Rifle > --- INVENTORY (15) --- Aluminum Leg Aluminum Leg Medium Storage Unit Light Assault Rifle Light Assault Rifle Peak State ------------ > --- POWER ------------ Light Nuclear Core > --- PROPULSION ------- Aluminum Leg Aluminum Leg > --- UTILITY ---------- Heat Sink Large Storage Unit > --- WEAPON ----------- EM Pulse Gun Particle Gun > --- INVENTORY -------- Aluminum Leg Aluminum Leg Aluminum Leg Medium Storage Unit Light Assault Rifle Light Assault Rifle Light Assault Rifle Light Assault Rifle [Rating: 10] Favorites ----------- Power Light Ion Engine Engine Light Ion Engine Power Core Light Nuclear Core Propulsion Aluminum Leg Leg Aluminum Leg Utility Heat Sink Device Heat Sink Storage Large Storage Unit Weapon Light Assault Rifle Energy Gun Small Laser Ballistic Gun Light Assault Rifle Build | -11 -10 -10 ------- Run | Yrd Mat Sub Slots Evolved . | . . . Power . | . . . Propulsion . | . . . Utility . | . . . Weapon . | . . . Parts Attached 19 | 5 8 6 Power 4 | 1 2 1 Engine 3 | 1 2 . Core 1 | . . 1 Reactor . | . . . Propulsion 5 | 2 1 2 Treads . | . . . Leg 5 | 2 1 2 Wheel . | . . . Hover . | . . . Flight . | . . . Utility 4 | 1 3 . Device 1 | . 1 . Storage 3 | 1 2 . Processor . | . . . Hackware . | . . . Protection . | . . . Artifact . | . . . Weapon 6 | 1 2 3 Energy Gun 3 | . 2 1 Energy Cannon . | . . . Ballistic Gun 3 | 1 . 2 Ballistic Cannon . | . . . Launcher . | . . . Special Weapon . | . . . Impact Weapon . | . . . Slashing Weapon . | . . . Piercing Weapon . | . . . Special Melee Weapon . | . . . Unidentified Prototypes . | . . . Parts Lost 8 | . 1 7 Power 2 | . . 2 Propulsion 3 | . 1 2 Utility . | . . . Weapon 3 | . . 3 Highest Loss Streak 7 | . 1 7 To Critical Strikes . | . . . Average Backups 8 | 1 8 9 Power 1 | . 1 . Propulsion 3 | . 3 3 Utility . | . . 1 Weapon 3 | . 3 4 Tool/Special . | . . . Unused Backups 6 | . 1 5 Power . | . . . Propulsion 2 | . . 2 Utility 1 | . . 1 Weapon 3 | . 1 2 Tool/Special . | . . . Average Slot Usage (%) 96 | . 96 98 Engine 13 | . 14 8 Leg 28 | . 28 28 Device 11 | . 11 14 Storage 14 | . 14 14 Energy Gun 12 | . 12 9 Ballistic Gun 14 | . 14 18 Peak Build Rating 10 | 5 9 10 Average Rating 7 | 3 7 8 On Entrance 4 | . 5 9 Naked Turns . | . . . Heaviest Build 28 | 9 28 28 Greatest Support 20 | 20 20 20 Greatest Overweight (x) 1 | . 1 1 Average Overweight (x) . | . . 1 Largest Inventory Capacity 15 | 8 15 15 Average Capacity 12 | 6 12 15 Most Carried 13 | 3 13 11 Average Carried 8 | 1 8 8 Final Capacity 15 | 8 15 15 Final Carried 11 | 1 11 5 Class Distribution -------------------- 100% | Mutant Dominant Class ---------------- Mutant | -10/Materials Mutant | -10/Subcaves Resources | -11 -10 -10 ----------- Run | Yrd Mat Sub Matter Collected 355 | 207 148 . Remotely . | . . . Salvage Created 541 | . 452 89 Parts 33 | . 28 5 Haulers Intercepted 1 | . 1 . Recyclers Shooed 3 | . 3 . Parts Field Recycled . | . . . Retrieved Matter . | . . . Parts Self-Destructed . | . . . Prevented . | . . . Kills | -11 -10 -10 ------- Run | Yrd Mat Sub Combat Hostiles Destroyed 10 | . 8 2 Guns 10 | . 8 2 Classes Destroyed 6 | . 5 1 Hauler 1 | . 1 . Recycler 1 | . 1 . Watcher 2 | . 2 . Swarmer 1 | . 1 . Grunt 7 | . 7 . Subdweller 2 | . . 2 Best Kill Streak 6 | . 6 1 Combat Bots Only 3 | . 3 1 Max Kills in Single Turn 1 | . 1 1 Gunslinging . | . . . Exploded . | . . . Melee . | . . . Uniques/NPCs Destroyed . | . . . Combat | -11 -10 -10 -------- Run | Yrd Mat Sub Hostile Shots Fired 130 | . 63 67 Missed 42 | . 20 22 Hits 88 | . 43 45 Projectile 88 | . 43 45 Critical Strikes 1 | . . 1 Damage Taken 1174 | . 405 769 Core 254 | . 72 182 Absorbed by Shields . | . . . Ignored by Resistances 344 | . 129 215 Core Remaining (%) 100 | 100 . . Volleys Fired 85 | . 60 25 Largest 2 | . 2 2 Hottest 85 | . 85 85 Shots Fired 149 | . 99 50 Gun 149 | . 99 50 Cannon . | . . . Launcher . | . . . Special . | . . . Kinetic 97 | . 60 37 Thermal 52 | . 39 13 Explosive . | . . . Electromagnetic . | . . . Robot Hit Streak 22 | . 22 20 Robot Miss Streak 3 | . 3 1 Penetration Max . | . . . Secondary Targets 3 | . 1 2 Max Gunslinging Chain 1 | . 1 1 Shots Hit Robots 124 | . 77 47 Core Hits 40 | . 33 7 Critical Kills . | . . . Critical Parts Destroyed . | . . . Critical Strikes 1 | . . 1 Burn 1 | . . 1 Melee Attacks . | . . . Impact . | . . . Slashing . | . . . Piercing . | . . . Sneak Attacks . | . . . Combat Hostiles . | . . . Follow-up Attacks . | . . . Damage Inflicted 1183 | . 735 448 Guns 1182 | . 734 448 Cannons . | . . . Explosions . | . . . Melee . | . . . Ramming 1 | . 1 . Kinetic 681 | . 413 268 Thermal 501 | . 321 180 Explosive . | . . . Electromagnetic . | . . . Impact . | . . . Slashing . | . . . Piercing . | . . . Highest Corruption . | . . . Average Corruption . | . . . Corruption Purged . | . . . Corruption Blocked . | . . . Overload Shots . | . . . Overflow Damage . | . . . Projectiles . | . . . Explosions . | . . . Melee . | . . . Knockbacks . | . . . Impact . | . . . Kinetic . | . . . Secondary . | . . . Self-Inflicted Damage . | . . . Shots . | . . . Rammed . | . . . Targets Rammed 1 | . 1 . Kicked 1 | . 1 . Crushed . | . . . Highest Temperature 205 | . 44 205 Average Temperature 25 | . 15 95 Received Heat Transfer 758 | . 267 491 Siege Activations . | . . . Martial Activations . | . . . Shielding Activations . | . . . Robots Disrupted . | . . . Combat Hostiles . | . . . Robots Corrupted . | . . . Combat Hostiles . | . . . Parts Fried . | . . . Impact Corruptions . | . . . Robots Melted . | . . . Combat Hostiles . | . . . Parts Melted 1 | . . 1 Heat Transferred 1255 | . 737 518 Parts Sabotaged . | . . . Parts Stolen . | . . . Parts Stripped . | . . . Power Chain Reactions . | . . . Alert | -11 -10 -10 ------- Run | Yrd Mat Sub Maximum Alert Level . | . . . Low Security (%) 100 | 100 100 . Level 1 . | . . . Level 2 . | . . . Level 3 . | . . . Level 4 . | . . . Level 5 . | . . . High Security . | . . . Max Security . | . . . Peak Influence 82 | . 82 . Initial . | . . . Average 11 | . 12 . Influence Increases 259 | . 259 . Destroy 0b10 Robot/C 160 | . 160 . Destroy 0b10 Robot/NC 20 | . 20 . Destroy Leader 56 | . 56 . Successful Hack 23 | . 23 . Influence Decreases 259 | . 259 . Time Decay 249 | . 249 . Lost Part 10 | . 10 . Squads Dispatched 1 | . 1 . Investigation 1 | . 1 . Extermination . | . . . Reinforcement . | . . . Assault . | . . . Garrison . | . . . Intercept . | . . . Searches Triggered . | . . . Construction Impeded . | . . . Haulers Reinforced . | . . . Active Scanning Responses . | . . . Cargo Convoy Interrupts . | . . . Stealth | -11 -10 -10 --------- Run | Yrd Mat Sub Distress Signals . | . . . Communications Jammed . | . . . Distress Signals . | . . . Times Spotted 19 | . 16 3 Peak Tracking Total 3 | . 3 3 Tactical Retreats . | . . . Traps | -11 -10 -10 ------- Run | Yrd Mat Sub Traps Triggered 1 | . 1 . Indirectly . | . . . Trap Hack Attempts . | . . . Triggered . | . . . Disarmed 15 | . 15 . Reprogrammed . | . . . Reused . | . . . Traps Extracted . | . . . Installed . | . . . Triggered . | . . . Machines | -11 -10 -10 ---------- Run | Yrd Mat Sub Machines Disabled . | . . . Max in Single Turn . | . . . Machines Repaired . | . . . Machines Dismantled . | . . . Machines Sabotaged . | . . . Overloaded Fab Kills . | . . . Hacking | -11 -10 -10 --------- Run | Yrd Mat Sub Machines Accessed 7 | . 7 . Terminals 6 | . 6 . Fabricators . | . . . Repair Stations . | . . . Recycling Units 1 | . 1 . Scanalyzers . | . . . Garrison Access . | . . . Total Hacks 26 | . 26 . Successful 16 | . 16 . Failed 10 | . 10 . Catastrophic . | . . . Database Lockouts . | . . . Manual 15 | . 15 . Terminals 24 | . 24 . Fabricators . | . . . Repair Stations . | . . . Recycling Units 2 | . 2 . Scanalyzers . | . . . Garrison Access . | . . . Terminal Hacks 6 | . 6 . Prototype ID Bank 1 | . 1 . Terminal Index 1 | . 1 . Locate Traps 1 | . 1 . Disarm Traps 3 | . 3 . Fabricator Hacks . | . . . Repair Station Hacks . | . . . Recycling Unit Hacks 2 | . 2 . Report Inventory 1 | . 1 . Retrieve Components 1 | . 1 . Scanalyzer . | . . . Garrison Access Hacks . | . . . Unauthorized Hacks 8 | . 8 . Terminals 8 | . 8 . Botnet 3 | . 3 . Skim 5 | . 5 . Fabricators . | . . . Repair Stations . | . . . Recycling Units . | . . . Scanalyzers . | . . . Garrison Access . | . . . Data Cores Recovered . | . . . Used . | . . . Hacking Detections 6 | . 6 . Full Trace Events . | . . . Feedback Events . | . . . Feedback Blocked . | . . . Robot Schematics Acquired . | . . . Robots Built . | . . . Authchips . | . . . Time . | . . . Total Robot Build Rating . | . . . Part Schematics Acquired . | . . . Parts Built . | . . . Authchips . | . . . Time . | . . . Total Part Build Rating . | . . . Parts Repaired . | . . . Time . | . . . Parts Recycled . | . . . Recycled Matter . | . . . Retrieved Matter . | . . . Retrieved Components 10 | . 10 . Parts Scanalyzed . | . . . Part Schematics Acquired . | . . . Parts Damaged . | . . . Bothacking | -11 -10 -10 ------------ Run | Yrd Mat Sub Used RIF Installer . | . . . Robots Hacked . | . . . Non-combat . | . . . Combat . | . . . Robot Hacks Applied . | . . . Relay Couplers Released . | . . . Fabnet Peak Effective % . | . . . Robots Rewired . | . . . Allies Hacked . | . . . Hacks Repelled . | . . . Allies | -11 -10 -10 -------- Run | Yrd Mat Sub Total Allies . | . . . Largest Group . | . . . Highest-Rated Group . | . . . Highest-Rated Ally . | . . . Total Orders . | . . . Ally Attacks . | . . . Total Damage . | . . . Kills . | . . . Allies Corrupted . | . . . Allies Melted . | . . . Intel | -11 -10 -10 ------- Run | Yrd Mat Sub Active Infowar (turns) . | . . . Robot Analysis Total . | . . . Derelict Logs Recovered . | . . . Drone Launches . | . . . Drone Recoveries . | . . . Exploration | -11 -10 -10 ------------- Run | Yrd Mat Sub Turns Passed 1542 | 63 1367 112 Spaces Moved 733 | 45 668 20 Core 14 | 14 . . Treads . | . . . Legs 719 | 31 668 20 Wheels . | . . . Hover . | . . . Flight . | . . . Fastest Speed 50 | 50 120 190 Average Speed 153 | 98 155 190 Slowest Speed 190 | 120 190 190 Overloaded Moves . | . . . Propulsion Burnouts . | . . . Robots Hopped . | . . . Potential Cave-ins . | . . . Cave-ins Triggered . | . . . Exploration Rate (%) 33 | 4 95 2 Regions Visited 2 Branch Regions 1 Pre-discovered Areas . | . . . Known Exits Taken 1 | . 1 . Unknown Exits Taken 1 | 1 . . Scrap Searched . | . . . Spaces Dug . | . . . Terrain Destroyed . | . . . Melee . | . . . Projectile . | . . . AOE . | . . . Terrain Rammed . | . . . Walls Destroyed . | . . . Machines Disabled . | . . . Actions | -11 -10 -10 --------- Run | Yrd Mat Sub Total 1024 | 64 908 52 Wait 157 | 9 147 1 Move 731 | 44 667 20 Hop . | . . . Pick Up 25 | 6 19 . Fast Attach . | . . . Attach 14 | 5 3 6 Detach . | . . . Swap 5 | . 5 . Drop 6 | . 6 . Fire 85 | . 60 25 Melee . | . . . Ram . | . . . Kick 1 | . 1 . Crush . | . . . Escape Stasis . | . . . Rewire . | . . . Trap . | . . . Miscellaneous . | . . . Route ------- -11/Scrapyard -10/Materials (discovered 6 exits: [*Mat x3] / *Min x2 / *Sub) -10/Subcaves History --------- Turn | Location | Event 7 | -11/Scrapyard | Discovered new exit (range 16) 64 | -11/Scrapyard | Entered Materials 319 | -10/Materials | Build established: Mutant 351 | -10/Materials | Discovered new exit (range 6) 376 | -10/Materials | Discovered new exit (range 7) 402 | -10/Materials | Discovered new exit (range 11) 683 | -10/Materials | Discovered new exit (range 13) 901 | -10/Materials | Discovered new exit (range 10) 1130 | -10/Materials | Learned 2 Mines zone layouts 1140 | -10/Materials | Discovered new exit (range 15) 1201 | -10/Materials | Loaded intel: 2 recycling unit locations 1262 | -10/Materials | Identified exit to Mines 1262 | -10/Materials | Identified exit to Subcaves 1315 | -10/Materials | Learned 2 Storage zone layouts 1360 | -10/Materials | Learned 4 Recycling zone layouts 1393 | -10/Materials | Learned location of 1 exit from Recycling 1431 | -10/Materials | Entered Subcaves 1432 | -10/Subcaves | Approached by a straggling Scientist 1493 | -10/Subcaves | Core integrity fell below 50% 1518 | -10/Subcaves | Core integrity fell below 20% 1543 | -10/Subcaves | Destroyed by 8D-6KC(R) with Subdweller Laser Last Messages --------------- 01495_ Lgt. Assault Rifle destroyed. 01495_ Lgt. Ion Engine destroyed. 01496_ Aluminum Leg destroyed. 01499_ EM Pulse Gun destroyed. 01500_ I0-XDC(R) destroyed. 01500_ Switching to secondary target: VA-1N9(R). 01504_ Subatomizers dissect the Sub. Beam Cannon. 01508_ Particle Gun destroyed. 01518_ Subatomizers dissect the Sub. Beam Cannon. 01518_ Aluminum Leg destroyed. 01528_ 8D-6KC(R) affixes Scrap Shield Fragment to Scrap Shield. 01532_ Subatomizers dissect the Sub. Beam Cannon. 01539_ Lgt. Nuclear Core destroyed. 01541_ Disposable Heat Sink melted. 01541_ VA-1N9(R) destroyed. 01541_ Switching to secondary target: 8D-6KC(R). Map ----- +----------------------------------------------------+ | ?????????????????????????????????????????????????? | | ?????????????????????????????????????????????????? | | ?????????????????????????????????????????????????? | | ?????????????????????????????????????????????????? | | ?????????????????????????????????????????????????? | | ?????????????????????????????????????????????????? | | ?????????????????????????????????????????????????? | | ?????????????????????????????????????????????????? | | ?????????????????????????????????????????????????? | | ?????????????????????????????????????????????????? | | ?????????????????????????????????????????????????? | | ?????????????????????????????????????????????????? | | ????????????????###??????????????????????????????? | | ????????????????# ##?????????????????????????????? | | ????????????????# #?????????????????????????????? | | ????????????????# ##????????????????????????????? | | ???????????????## ?????????????????????????????? | | ??????????????## #?????????????????????????????? | | ?????????????## #?????????????????????????????? | | ?????????????# ##????????????????????????????? | | ?????????????# ##??###??????????????????????? | | ?????????????# #### ##?????????????????????? | | ?????????????## ## #?????????????????????? | | ??????????????# ##?????????????????????? | | ??????????????## #??????????????????????? | | ???????????????## =@#??????????????????????? | | ????????????????## # R%##??????????????????????? | | ?????????????????# ## & #??????????????????????? | | ?????????????????# ####*%# ???????????????????? | | ?????????????????###??# ]! ???????????????? | | ??????????????????????# ### #????????????? | | ??????????????????????# ##???? ??????????? | | ?????????????????????? #???????? ???????????? | | ?????????????????????? #?????????????????????? | | ????????????????????? ?????????????????????? | | ????????????????????? ????????????????????? | | ????????????????????? ????????????????????? | | ????????????????????#### ????????????????????? | | ???????????????????????? #???????????????????? | | ???????????????????????? #???????????????????? | | ???????????????????????? #???????????????????? | | ???????????????????????? ????????????????????? | | ???????????????????????? ??????????????????????? | | ?????????????????????????????????????????????????? | | ?????????????????????????????????????????????????? | | ?????????????????????????????????????????????????? | | ?????????????????????????????????????????????????? | | ?????????????????????????????????????????????????? | | ?????????????????????????????????????????????????? | | ?????????????????????????????????????????????????? | +----------------------------------------------------+ Best States ------------- Heat Dissipation 35 Energy Generation 14 Energy Capacity 160 Matter Stores 300 Matter Capacity 300 Sight Range 16 Terrain Scan Density 10 Resistance: KI 20 Resistance: TH 20 Resistance: EX 20 Resistance: EM 20 Resistance: I 20 Resistance: S 20 Resistance: P 20 Evasion (%) 55 Offensive Hacking 10 Item Schematics ----------------- None Robot Schematics ------------------ None Fabricated ------------ Nothing Repaired ---------- Nothing Alien Tech Used ----------------- None Achievements -------------- None Challenges ------------ None Game ------ Seed WarpRingRailcannon Manual? 0 Play Time 00:13:07 Cumulative 337.7 hours Start 2025.05.09 @ 22:41:42 End 2025.05.09 @ 22:53:42 Sessions 1 Manual Loads 0 Difficulty Adventurer Special Mode None Game No. 193 Rogue 104 Adventurer 89 Explorer 0 Win Type - Total 21 Types 13/3/0/4/0/0/0/0/0/1 Lore% 76 Gallery% 82 Achievement% 75 Wizard Run 0 Options --------- Layout 1 ASCII 0 Keyboard 0 Movement Mouse Keybinds 0 Fullscreen 2 Font 24/Terminus Map View 50x35 Zoom Use 6% Tactical HUD 1 Map Filters NONE Filters NONE Steam 1 RUN: c29dc539-98d9-4adc-9ee5-37b08bf79b95